[Event "*** Titled Tuesday Blitz"]
[Site "Chess.com"]
[Date "2020.12.29"]
[Round "8"]
[White "albi1999"]
[Black "ShapkinAnatoliy"]
[Result "0-1"]
[WhiteElo "2534"]
[BlackElo "2710"]
[TimeControl "180+1"]
[EndTime "11:27:03 PST"]
[Termination "ShapkinAnatoliy won by resignation"]

1. d4 {[%clk 0:03:00.9]} 1... Nf6 {[%clk 0:02:40.2]} 2. c4 {[%clk 0:02:58.7]}
2... g6 {[%clk 0:02:40.1]} 3. g3 {[%clk 0:02:52.1]} 3... c5 {[%clk 0:02:39.6]}
4. Nf3 {[%clk 0:02:44.1]} 4... cxd4 {[%clk 0:02:39.7]} 5. Nxd4 {[%clk 0:02:45]}
5... Nc6 {[%clk 0:02:39.6]} 6. Bg2 {[%clk 0:02:45.3]} 6... Bg7 {[%clk
0:02:39.8]} 7. Nc3 {[%clk 0:02:44.2]} 7... O-O {[%clk 0:02:40.3]} 8. O-O {[%clk
0:02:44.2]} 8... Qa5 {[%clk 0:02:38.8]} 9. e3 {[%clk 0:02:41.5]} 9... d6 {[%clk
0:02:38.4]} 10. Nxc6 {[%clk 0:02:32.1]} 10... bxc6 {[%clk 0:02:39.3]} 11. Bxc6
{[%clk 0:02:32.6]} 11... Rb8 {[%clk 0:02:36.7]} 12. Bg2 {[%clk 0:02:28.4]} 12...
Be6 {[%clk 0:02:31.9]} 13. Nd5 {[%clk 0:02:19.1]} 13... Nxd5 {[%clk 0:02:14.6]}
14. cxd5 {[%clk 0:02:20]} 14... Bd7 {[%clk 0:02:10]} 15. Bd2 {[%clk 0:02:17.3]}
15... Qa6 {[%clk 0:02:01.2]} 16. Bc3 {[%clk 0:02:16.6]} 16... Bxc3 {[%clk
0:02:01.7]} 17. bxc3 {[%clk 0:02:17.5]} 17... Rb2 {[%clk 0:02:01.7]} 18. a3
{[%clk 0:02:10.7]} 18... Rc8 {[%clk 0:01:56.5]} 19. Qc1 {[%clk 0:01:49.3]} 19...
Rb3 {[%clk 0:01:52.5]} 20. e4 {[%clk 0:01:47.2]} 20... Rcxc3 {[%clk 0:01:35.6]}
21. Qf4 {[%clk 0:01:42.1]} 21... Rxa3 {[%clk 0:01:25.2]} 22. Rxa3 {[%clk
0:01:29]} 22... Rxa3 {[%clk 0:01:26.1]} 23. e5 {[%clk 0:01:28.5]} 23... Ra1
{[%clk 0:01:20.7]} 24. exd6 {[%clk 0:01:25.4]} 24... Rxf1+ {[%clk 0:01:20.2]}
25. Bxf1 {[%clk 0:01:25.5]} 25... Qxd6 {[%clk 0:01:20.6]} 26. Qd4 {[%clk
0:01:18.9]} 26... a5 {[%clk 0:01:16.5]} 27. h4 {[%clk 0:01:00]} 27... h5 {[%clk
0:01:07.7]} 28. Bg2 {[%clk 0:00:54.2]} 28... a4 {[%clk 0:01:07.8]} 29. Qa7
{[%clk 0:00:54.1]} 29... a3 {[%clk 0:01:04.8]} 30. Qa5 {[%clk 0:00:52.7]} 30...
Bf5 {[%clk 0:01:02.5]} 31. Bf3 {[%clk 0:00:40]} 31... Bd3 {[%clk 0:00:57.4]} 32.
Qc3 {[%clk 0:00:36.9]} 32... a2 {[%clk 0:00:51.4]} 33. Qa5 {[%clk 0:00:28.6]}
33... Bc4 {[%clk 0:00:48.7]} 34. Qa8+ {[%clk 0:00:26.3]} 34... Kg7 {[%clk
0:00:44.4]} 35. Qa5 {[%clk 0:00:26.8]} 35... Qf6 {[%clk 0:00:44]} 0-1

[Event "*** Titled Tuesday Blitz"]
[Site "Chess.com"]
[Date "2020.12.29"]
[Round "8"]
[White "anpospan"]
[Black "onnoelgersma"]
[Result "0-1"]
[WhiteElo "2317"]
[BlackElo "2434"]
[TimeControl "180+1"]
[EndTime "11:27:04 PST"]
[Termination "onnoelgersma won by checkmate"]

1. d4 {[%clk 0:03:00.9]} 1... d5 {[%clk 0:02:59.5]} 2. c4 {[%clk 0:03:00.9]}
2... e6 {[%clk 0:03:00.2]} 3. Nc3 {[%clk 0:03:00.4]} 3... Nf6 {[%clk 0:03:00.8]}
4. cxd5 {[%clk 0:03:00.3]} 4... exd5 {[%clk 0:03:01.7]} 5. Bg5 {[%clk
0:02:59.8]} 5... c6 {[%clk 0:03:02.4]} 6. e3 {[%clk 0:03:00]} 6... Bd6 {[%clk
0:03:03]} 7. Bd3 {[%clk 0:02:59.9]} 7... O-O {[%clk 0:03:03]} 8. Nf3 {[%clk
0:03:00]} 8... Be6 {[%clk 0:03:00.2]} 9. O-O {[%clk 0:02:59.7]} 9... Nbd7 {[%clk
0:03:00]} 10. Qc2 {[%clk 0:02:59.5]} 10... h6 {[%clk 0:02:59.1]} 11. Bh4 {[%clk
0:02:58.7]} 11... Rc8 {[%clk 0:02:58.3]} 12. Bf5 {[%clk 0:02:57.5]} 12... Qe8
{[%clk 0:02:54.4]} 13. Rac1 {[%clk 0:02:49]} 13... a6 {[%clk 0:02:49.5]} 14. a3
{[%clk 0:02:47.5]} 14... g6 {[%clk 0:02:27]} 15. Bxe6 {[%clk 0:02:46.8]} 15...
Qxe6 {[%clk 0:02:26.8]} 16. Bg3 {[%clk 0:02:38.7]} 16... Rfe8 {[%clk 0:02:20.5]}
17. Bxd6 {[%clk 0:02:34.9]} 17... Qxd6 {[%clk 0:02:21.4]} 18. b4 {[%clk
0:02:34.6]} 18... b5 {[%clk 0:02:20]} 19. Nd2 {[%clk 0:02:28.2]} 19... Nb6
{[%clk 0:02:05.4]} 20. Nb3 {[%clk 0:02:16.6]} 20... Nc4 {[%clk 0:02:04.6]} 21.
Ra1 {[%clk 0:02:16.4]} 21... Ng4 {[%clk 0:01:59.2]} 22. g3 {[%clk 0:02:12.9]}
22... h5 {[%clk 0:01:58.1]} 23. Nc5 {[%clk 0:02:08]} 23... h4 {[%clk 0:01:52.7]}
24. Nxa6 {[%clk 0:01:56.5]} 24... hxg3 {[%clk 0:01:35.7]} 25. hxg3 {[%clk
0:01:55.3]} 25... Ncxe3 {[%clk 0:01:14.1]} 26. fxe3 {[%clk 0:01:51.7]} 26...
Rxe3 {[%clk 0:01:13.7]} 27. Ne2 {[%clk 0:01:38.6]} 27... Qe7 {[%clk 0:01:12.8]}
28. Rae1 {[%clk 0:01:22]} 28... Re8 {[%clk 0:01:08.2]} 29. Nc5 {[%clk
0:01:05.5]} 29... Qg5 {[%clk 0:00:50.7]} 30. Nd3 {[%clk 0:00:52.6]} 30... Qh5
{[%clk 0:00:49.6]} 31. Rf2 {[%clk 0:00:32.3]} 31... Nxf2 {[%clk 0:00:44.5]} 32.
Nef4 {[%clk 0:00:24.5]} 32... Qh1+ {[%clk 0:00:36.5]} 33. Kxf2 {[%clk
0:00:24.1]} 33... Rf3# {[%clk 0:00:35.8]} 0-1

[Event "*** Titled Tuesday Blitz"]
[Site "Chess.com"]
[Date "2020.12.29"]
[Round "8"]
[White "The_Machine04"]
[Black "azikom"]
[Result "0-1"]
[WhiteElo "2418"]
[BlackElo "2607"]
[TimeControl "180+1"]
[EndTime "11:27:08 PST"]
[Termination "azikom won by resignation"]

1. d4 {[%clk 0:03:00.9]} 1... d5 {[%clk 0:02:59.5]} 2. Bf4 {[%clk 0:03:00.4]}
2... c6 {[%clk 0:02:58.3]} 3. e3 {[%clk 0:02:59.6]} 3... Qb6 {[%clk 0:02:58.5]}
4. Nd2 {[%clk 0:02:59.1]} 4... Qxb2 {[%clk 0:02:55.6]} 5. Bd3 {[%clk 0:02:59.1]}
5... Nf6 {[%clk 0:02:51.7]} 6. Ne2 {[%clk 0:02:58.9]} 6... Qa3 {[%clk
0:02:49.1]} 7. O-O {[%clk 0:02:58.1]} 7... e6 {[%clk 0:02:46]} 8. Nf3 {[%clk
0:02:57.1]} 8... Nbd7 {[%clk 0:02:42.1]} 9. c4 {[%clk 0:02:55.6]} 9... Be7
{[%clk 0:02:37.8]} 10. c5 {[%clk 0:02:53.1]} 10... Qa5 {[%clk 0:02:32.4]} 11.
Qc2 {[%clk 0:02:50.5]} 11... h6 {[%clk 0:02:28.6]} 12. Rfb1 {[%clk 0:02:49.2]}
12... O-O {[%clk 0:02:27.3]} 13. a4 {[%clk 0:02:38.7]} 13... Nh5 {[%clk
0:02:21.6]} 14. Be5 {[%clk 0:02:33]} 14... Nxe5 {[%clk 0:02:15.2]} 15. Nxe5
{[%clk 0:02:33.9]} 15... Nf6 {[%clk 0:02:11.2]} 16. g4 {[%clk 0:02:23.6]} 16...
Nd7 {[%clk 0:02:09.3]} 17. f4 {[%clk 0:02:18.3]} 17... Nxe5 {[%clk 0:02:07.3]}
18. fxe5 {[%clk 0:02:19.2]} 18... b6 {[%clk 0:01:58.3]} 19. cxb6 {[%clk
0:02:01.8]} 19... axb6 {[%clk 0:01:57.4]} 20. Qxc6 {[%clk 0:01:12.1]} 20... Ba6
{[%clk 0:01:56]} 21. Bxa6 {[%clk 0:01:09.7]} 21... Qxa6 {[%clk 0:01:44.4]} 22.
Qb5 {[%clk 0:01:08.4]} 22... Bg5 {[%clk 0:01:43.5]} 23. Kf2 {[%clk 0:01:05.3]}
23... f6 {[%clk 0:01:35.7]} 24. exf6 {[%clk 0:00:27.1]} 24... Rxf6+ {[%clk
0:01:34.1]} 25. Kg3 {[%clk 0:00:27.1]} 25... Bxe3 {[%clk 0:01:31.1]} 26. Qxa6
{[%clk 0:00:25.7]} 26... Rxa6 {[%clk 0:01:30.7]} 27. Rb3 {[%clk 0:00:25.6]}
27... Bf2+ {[%clk 0:01:29.5]} 28. Kg2 {[%clk 0:00:25.4]} 28... Bh4 {[%clk
0:01:29.2]} 29. Kh3 {[%clk 0:00:12.2]} 29... Bg5 {[%clk 0:01:27]} 30. Kg3 {[%clk
0:00:11.2]} 30... Rf8 {[%clk 0:01:16]} 31. h4 {[%clk 0:00:11]} 31... Be7 {[%clk
0:01:14.6]} 32. Nf4 {[%clk 0:00:09.7]} 32... Bd6 {[%clk 0:01:14.4]} 33. Rf3
{[%clk 0:00:09.4]} 33... g5 {[%clk 0:01:09.6]} 34. hxg5 {[%clk 0:00:04.2]} 34...
hxg5 {[%clk 0:01:09.5]} 0-1

[Event "*** Titled Tuesday Blitz"]
[Site "Chess.com"]
[Date "2020.12.29"]
[Round "8"]
[White "CHENNAIBOND"]
[Black "kinga2008"]
[Result "0-1"]
[WhiteElo "1574"]
[BlackElo "2162"]
[TimeControl "180+1"]
[EndTime "11:27:09 PST"]
[Termination "kinga2008 won by resignation"]

1. e4 {[%clk 0:02:47.6]} 1... g6 {[%clk 0:03:00.9]} 2. d4 {[%clk 0:02:46.5]}
2... Bg7 {[%clk 0:02:53]} 3. Nf3 {[%clk 0:02:46.6]} 3... d6 {[%clk 0:02:52.2]}
4. Bd3 {[%clk 0:02:46.9]} 4... Nf6 {[%clk 0:02:51.2]} 5. O-O {[%clk 0:02:46.9]}
5... O-O {[%clk 0:02:43]} 6. Re1 {[%clk 0:02:41.3]} 6... e5 {[%clk 0:02:39.5]}
7. c3 {[%clk 0:02:40]} 7... exd4 {[%clk 0:02:37.9]} 8. cxd4 {[%clk 0:02:39.8]}
8... c5 {[%clk 0:02:36.8]} 9. d5 {[%clk 0:02:28.4]} 9... Nfd7 {[%clk 0:02:25.4]}
10. Nc3 {[%clk 0:02:23.4]} 10... Ne5 {[%clk 0:02:22.5]} 11. Bc2 {[%clk
0:02:21.8]} 11... Bg4 {[%clk 0:02:13.5]} 12. Bf4 {[%clk 0:02:09.9]} 12... Nxf3+
{[%clk 0:02:11.8]} 13. gxf3 {[%clk 0:02:08.8]} 13... Bh3 {[%clk 0:02:09.8]} 14.
Bg3 {[%clk 0:02:02.8]} 14... Nd7 {[%clk 0:02:06.7]} 15. f4 {[%clk 0:02:01.1]}
15... Nf6 {[%clk 0:01:54.9]} 16. e5 {[%clk 0:01:52.6]} 16... Nh5 {[%clk
0:01:52]} 17. e6 {[%clk 0:01:39.8]} 17... Qf6 {[%clk 0:01:40.5]} 18. Ne4 {[%clk
0:01:29.5]} 18... Qxb2 {[%clk 0:01:32.9]} 19. Rb1 {[%clk 0:01:26]} 19... Qd4
{[%clk 0:01:20.6]} 20. Ng5 {[%clk 0:01:22.4]} 20... Qxd1 {[%clk 0:00:57.1]} 21.
Rbxd1 {[%clk 0:01:21.2]} 21... Nxg3 {[%clk 0:00:53.8]} 22. fxg3 {[%clk
0:01:18.3]} 22... Bg4 {[%clk 0:00:51.9]} 23. Rb1 {[%clk 0:01:03.6]} 23... Bc3
{[%clk 0:00:48.8]} 24. Rf1 {[%clk 0:00:52]} 24... fxe6 {[%clk 0:00:36.2]} 25.
dxe6 {[%clk 0:00:42.3]} 25... b6 {[%clk 0:00:30.8]} 26. Be4 {[%clk 0:00:40]}
26... Rae8 {[%clk 0:00:28.9]} 27. Bd5 {[%clk 0:00:39.9]} 27... Re7 {[%clk
0:00:28.2]} 28. Nf7 {[%clk 0:00:34.4]} 28... Bxe6 {[%clk 0:00:24]} 29. Bxe6
{[%clk 0:00:19.5]} 29... Rxe6 {[%clk 0:00:23.5]} 0-1

[Event "*** Titled Tuesday Blitz"]
[Site "Chess.com"]
[Date "2020.12.29"]
[Round "8"]
[White "biostatistician"]
[Black "esskeettit"]
[Result "1-0"]
[WhiteElo "2609"]
[BlackElo "2470"]
[TimeControl "180+1"]
[EndTime "11:27:14 PST"]
[Termination "biostatistician won by resignation"]

1. d4 {[%clk 0:02:59.9]} 1... Nf6 {[%clk 0:02:58.9]} 2. Nf3 {[%clk 0:03:00.8]}
2... d5 {[%clk 0:02:58.3]} 3. c4 {[%clk 0:03:01.3]} 3... e6 {[%clk 0:02:58.5]}
4. Bg5 {[%clk 0:03:01.8]} 4... Be7 {[%clk 0:02:58.2]} 5. e3 {[%clk 0:03:02.3]}
5... O-O {[%clk 0:02:55.8]} 6. Nc3 {[%clk 0:03:02.5]} 6... h6 {[%clk 0:02:56.2]}
7. Bh4 {[%clk 0:03:02.4]} 7... b6 {[%clk 0:02:44]} 8. Bd3 {[%clk 0:03:01.5]}
8... Bb7 {[%clk 0:02:43.7]} 9. O-O {[%clk 0:03:02.2]} 9... Nbd7 {[%clk
0:02:43.7]} 10. Qe2 {[%clk 0:03:02.7]} 10... c5 {[%clk 0:02:38.8]} 11. Rad1
{[%clk 0:03:01.9]} 11... cxd4 {[%clk 0:02:36.3]} 12. exd4 {[%clk 0:03:02.2]}
12... Rc8 {[%clk 0:02:24.7]} 13. Ne5 {[%clk 0:03:00.4]} 13... dxc4 {[%clk
0:02:10.8]} 14. Bxc4 {[%clk 0:03:01.3]} 14... Re8 {[%clk 0:02:06.1]} 15. Nxf7
{[%clk 0:02:56.9]} 15... Qc7 {[%clk 0:01:42.6]} 16. Bxe6 {[%clk 0:02:52.7]}
16... Kh7 {[%clk 0:01:29.8]} 17. Bg3 {[%clk 0:02:45.1]} 17... Qc6 {[%clk
0:01:10.5]} 18. d5 {[%clk 0:02:43.4]} 18... Qc5 {[%clk 0:01:09.2]} 19. Bf5+
{[%clk 0:02:09]} 19... g6 {[%clk 0:01:00.5]} 20. Qd2 {[%clk 0:01:52.5]} 20...
Bf8 {[%clk 0:00:23.6]} 21. Bd6 {[%clk 0:01:44.4]} 21... gxf5 {[%clk 0:00:15.6]}
22. Bxc5 {[%clk 0:01:42.4]} 22... Nxc5 {[%clk 0:00:15.8]} 23. Rfe1 {[%clk
0:01:38]} 23... Rxe1+ {[%clk 0:00:12.4]} 24. Rxe1 {[%clk 0:01:38]} 24... Rc7
{[%clk 0:00:11.3]} 25. Nd8 {[%clk 0:01:32.6]} 25... Ba8 {[%clk 0:00:08.1]} 26.
Ne6 {[%clk 0:01:30.2]} 26... Rf7 {[%clk 0:00:04.1]} 27. Nxf8+ {[%clk 0:01:24.2]}
27... Rxf8 {[%clk 0:00:05]} 28. d6 {[%clk 0:01:25]} 28... Kg6 {[%clk 0:00:05.7]}
29. Re7 {[%clk 0:01:18.1]} 29... Rd8 {[%clk 0:00:05.5]} 30. Qf4 {[%clk
0:01:16.1]} 30... Nce4 {[%clk 0:00:04.2]} 31. Nxe4 {[%clk 0:01:15.3]} 31... Nxe4
{[%clk 0:00:02.9]} 32. Re6+ {[%clk 0:01:10]} 32... Nf6 {[%clk 0:00:02.6]} 33.
Rxf6+ {[%clk 0:01:07.8]} 33... Kxf6 {[%clk 0:00:02.4]} 34. Qh4+ {[%clk
0:01:08.3]} 34... Ke6 {[%clk 0:00:01.7]} 35. Qxd8 {[%clk 0:01:09.2]} 35... Kd5
{[%clk 0:00:01.2]} 36. Qxa8+ {[%clk 0:01:08.7]} 36... Kxd6 {[%clk 0:00:02.1]}
37. Qxa7 {[%clk 0:01:08.3]} 1-0

[Event "*** Titled Tuesday Blitz"]
[Site "Chess.com"]
[Date "2020.12.29"]
[Round "8"]
[White "pavelalexandru07"]
[Black "catzapto"]
[Result "1/2-1/2"]
[WhiteElo "2272"]
[BlackElo "2125"]
[TimeControl "180+1"]
[EndTime "11:27:18 PST"]
[Termination "Game drawn by repetition"]

1. e4 {[%clk 0:03:00.9]} 1... c5 {[%clk 0:03:00]} 2. Nf3 {[%clk 0:03:00.8]} 2...
e6 {[%clk 0:03:00.3]} 3. d4 {[%clk 0:03:01.2]} 3... cxd4 {[%clk 0:03:01.2]} 4.
Nxd4 {[%clk 0:03:02.1]} 4... Nf6 {[%clk 0:03:01.8]} 5. Nc3 {[%clk 0:03:00.3]}
5... Bb4 {[%clk 0:03:02.3]} 6. e5 {[%clk 0:02:52.6]} 6... Nd5 {[%clk 0:03:01.6]}
7. Bd2 {[%clk 0:02:47.5]} 7... Nxc3 {[%clk 0:03:01.3]} 8. bxc3 {[%clk
0:02:47.5]} 8... Be7 {[%clk 0:03:02]} 9. Bd3 {[%clk 0:02:45.9]} 9... Nc6 {[%clk
0:03:01.3]} 10. Nxc6 {[%clk 0:02:45.9]} 10... bxc6 {[%clk 0:03:01.3]} 11. O-O
{[%clk 0:02:46.4]} 11... Qc7 {[%clk 0:03:00.2]} 12. f4 {[%clk 0:02:42.3]} 12...
g6 {[%clk 0:03:00.5]} 13. c4 {[%clk 0:02:38.3]} 13... d5 {[%clk 0:03:00]} 14.
Kh1 {[%clk 0:02:31.9]} 14... O-O {[%clk 0:02:53.7]} 15. Qe2 {[%clk 0:02:24.9]}
15... Ba6 {[%clk 0:02:53.1]} 16. Be3 {[%clk 0:01:31.9]} 16... Rab8 {[%clk
0:02:50.9]} 17. Rab1 {[%clk 0:01:11.9]} 17... Rxb1 {[%clk 0:02:48.5]} 18. Rxb1
{[%clk 0:01:11.5]} 18... Rb8 {[%clk 0:02:48.4]} 19. Rd1 {[%clk 0:00:56.8]} 19...
Qb7 {[%clk 0:02:43.2]} 20. cxd5 {[%clk 0:00:49.2]} 20... Bxd3 {[%clk 0:02:42.6]}
21. Qxd3 {[%clk 0:00:48.2]} 21... cxd5 {[%clk 0:02:41.7]} 22. c4 {[%clk
0:00:47.5]} 22... Rd8 {[%clk 0:02:27.8]} 23. cxd5 {[%clk 0:00:44.6]} 23... Rxd5
{[%clk 0:02:27.3]} 24. Qc2 {[%clk 0:00:43.4]} 24... Rxd1+ {[%clk 0:02:26.9]} 25.
Qxd1 {[%clk 0:00:44.3]} 25... a5 {[%clk 0:02:14.8]} 26. h3 {[%clk 0:00:41]}
26... Qb5 {[%clk 0:02:08.8]} 27. Qc2 {[%clk 0:00:35.6]} 27... a4 {[%clk
0:01:59.1]} 28. Qc7 {[%clk 0:00:25.5]} 28... Bh4 {[%clk 0:01:42.8]} 29. Kh2
{[%clk 0:00:04.1]} 29... Qe2 {[%clk 0:01:41.2]} 30. Qc8+ {[%clk 0:00:04]} 30...
Kg7 {[%clk 0:01:40.9]} 31. Qc3 {[%clk 0:00:04.4]} 31... Qxa2 {[%clk 0:01:29.5]}
32. Qd4 {[%clk 0:00:04.2]} 32... Qe2 {[%clk 0:01:21.8]} 33. f5 {[%clk
0:00:02.3]} 33... gxf5 {[%clk 0:01:11.9]} 34. Qxh4 {[%clk 0:00:02.2]} 34... Qxe3
{[%clk 0:01:10.8]} 35. Qf6+ {[%clk 0:00:02.8]} 35... Kg8 {[%clk 0:01:05.4]} 36.
Qd8+ {[%clk 0:00:03.7]} 36... Kg7 {[%clk 0:01:05.6]} 37. Qf6+ {[%clk 0:00:04.6]}
37... Kg8 {[%clk 0:00:59.6]} 38. Qd8+ {[%clk 0:00:05.5]} 38... Kg7 {[%clk
0:01:00.2]} 39. Qf6+ {[%clk 0:00:06.4]} 1/2-1/2

[Event "*** Titled Tuesday Blitz"]
[Site "Chess.com"]
[Date "2020.12.29"]
[Round "8"]
[White "GM_LOADING"]
[Black "theturtlemoves"]
[Result "1-0"]
[WhiteElo "2507"]
[BlackElo "2366"]
[TimeControl "180+1"]
[EndTime "11:27:25 PST"]
[Termination "GM_LOADING won on time"]

1. d4 {[%clk 0:02:53.5]} 1... d5 {[%clk 0:02:59.7]} 2. c4 {[%clk 0:02:52.5]}
2... e6 {[%clk 0:02:59.9]} 3. Nc3 {[%clk 0:02:50.4]} 3... a6 {[%clk 0:02:59.9]}
4. cxd5 {[%clk 0:02:48.8]} 4... exd5 {[%clk 0:03:00.8]} 5. Bf4 {[%clk
0:02:47.2]} 5... Nf6 {[%clk 0:03:00.1]} 6. e3 {[%clk 0:02:46.7]} 6... Bd6 {[%clk
0:02:56.6]} 7. Bxd6 {[%clk 0:02:45.7]} 7... Qxd6 {[%clk 0:02:57.5]} 8. Bd3
{[%clk 0:02:45.9]} 8... O-O {[%clk 0:02:56.4]} 9. Nge2 {[%clk 0:02:45]} 9... Re8
{[%clk 0:02:55.6]} 10. O-O {[%clk 0:02:43.6]} 10... Nbd7 {[%clk 0:02:49.1]} 11.
Nf4 {[%clk 0:02:40.5]} 11... c6 {[%clk 0:02:30.2]} 12. Nce2 {[%clk 0:02:29.9]}
12... Nf8 {[%clk 0:02:25.8]} 13. Ng3 {[%clk 0:02:28.1]} 13... Ng6 {[%clk
0:02:22.7]} 14. Bxg6 {[%clk 0:02:27.7]} 14... hxg6 {[%clk 0:02:21.4]} 15. Rc1
{[%clk 0:02:28.1]} 15... Bg4 {[%clk 0:02:15.1]} 16. Qb3 {[%clk 0:02:27.5]} 16...
Bd7 {[%clk 0:01:48.2]} 17. Nd3 {[%clk 0:02:23]} 17... g5 {[%clk 0:01:19.8]} 18.
Nc5 {[%clk 0:02:13.6]} 18... Rab8 {[%clk 0:01:08.6]} 19. Qb6 {[%clk 0:02:12.9]}
19... Bc8 {[%clk 0:00:57.7]} 20. a4 {[%clk 0:02:11.3]} 20... g6 {[%clk
0:00:56.6]} 21. a5 {[%clk 0:01:54.9]} 21... Kg7 {[%clk 0:00:56.5]} 22. Qb4
{[%clk 0:01:53.9]} 22... Qc7 {[%clk 0:00:22]} 23. Nd3 {[%clk 0:01:50]} 23... Rh8
{[%clk 0:00:19.1]} 24. Ne5 {[%clk 0:01:49.3]} 24... Ng4 {[%clk 0:00:15.9]} 25.
Nf3 {[%clk 0:01:39.2]} 25... f6 {[%clk 0:00:01.6]} 26. Qb6 {[%clk 0:01:36.3]}
26... Qxb6 {[%clk 0:00:01]} 27. axb6 {[%clk 0:01:36]} 27... Be6 {[%clk
0:00:01.9]} 28. b4 {[%clk 0:01:30.5]} 28... Nh6 {[%clk 0:00:02.8]} 29. Ne1
{[%clk 0:01:27.6]} 29... Nf7 {[%clk 0:00:03.3]} 30. Nd3 {[%clk 0:01:26.3]} 30...
Nd6 {[%clk 0:00:03.9]} 31. Nc5 {[%clk 0:01:25.7]} 31... Bc8 {[%clk 0:00:04.5]}
32. Ne2 {[%clk 0:01:16.9]} 32... Nc4 {[%clk 0:00:04.7]} 33. Na4 {[%clk
0:01:15.8]} 33... Bg4 {[%clk 0:00:03.2]} 34. Nec3 {[%clk 0:01:14.7]} 34... Rh7
{[%clk 0:00:02.7]} 35. f3 {[%clk 0:01:07.2]} 35... Be6 {[%clk 0:00:01.3]} 36.
Nc5 {[%clk 0:01:04.4]} 36... Bf7 {[%clk 0:00:01.7]} 37. N3a4 {[%clk 0:00:59.1]}
1-0

[Event "*** Titled Tuesday Blitz"]
[Site "Chess.com"]
[Date "2020.12.29"]
[Round "8"]
[White "GM4life"]
[Black "pavel_skatchkov"]
[Result "0-1"]
[WhiteElo "2440"]
[BlackElo "2578"]
[TimeControl "180+1"]
[EndTime "11:27:28 PST"]
[Termination "pavel_skatchkov won on time"]

1. e4 {[%clk 0:03:00.9]} 1... e5 {[%clk 0:02:59.5]} 2. Nf3 {[%clk 0:02:59.7]}
2... d5 {[%clk 0:02:59.4]} 3. exd5 {[%clk 0:02:58.6]} 3... e4 {[%clk 0:03:00.3]}
4. Qe2 {[%clk 0:02:59.1]} 4... Nf6 {[%clk 0:02:59.5]} 5. Nc3 {[%clk 0:02:59.5]}
5... Be7 {[%clk 0:02:59.5]} 6. Nxe4 {[%clk 0:02:58.7]} 6... O-O {[%clk 0:03:00]}
7. d3 {[%clk 0:02:31.9]} 7... Re8 {[%clk 0:02:56.3]} 8. Be3 {[%clk 0:02:28.6]}
8... Nxd5 {[%clk 0:02:55.6]} 9. O-O-O {[%clk 0:02:27.5]} 9... f5 {[%clk
0:02:55]} 10. Ned2 {[%clk 0:02:11.7]} 10... Bf6 {[%clk 0:02:47.1]} 11. g3 {[%clk
0:02:04.1]} 11... Nc6 {[%clk 0:02:45.4]} 12. Bg2 {[%clk 0:01:59.4]} 12... Qe7
{[%clk 0:02:37.7]} 13. Rhe1 {[%clk 0:01:57.9]} 13... Nc3 {[%clk 0:02:34.3]} 14.
bxc3 {[%clk 0:01:44.8]} 14... Qa3+ {[%clk 0:02:32.7]} 15. Kb1 {[%clk 0:01:45.3]}
15... Bxc3 {[%clk 0:02:33]} 16. Nc4 {[%clk 0:01:45.2]} 16... Qb4+ {[%clk
0:02:32.8]} 17. Kc1 {[%clk 0:01:45.1]} 17... Be6 {[%clk 0:02:27.2]} 18. Bd2
{[%clk 0:01:31.6]} 18... Bxc4 {[%clk 0:02:21.2]} 19. Bxc3 {[%clk 0:01:26]} 19...
Qxc3 {[%clk 0:02:18.9]} 20. Qxe8+ {[%clk 0:00:54.9]} 20... Rxe8 {[%clk
0:02:19.8]} 21. Rxe8+ {[%clk 0:00:54.8]} 21... Kf7 {[%clk 0:02:19.1]} 22. Rde1
{[%clk 0:00:55.2]} 22... Bxd3 {[%clk 0:01:40]} 23. Ng5+ {[%clk 0:00:53.7]} 23...
Kg6 {[%clk 0:01:29.1]} 24. R8e6+ {[%clk 0:00:42]} 24... Kxg5 {[%clk 0:01:28.5]}
25. f4+ {[%clk 0:00:17.6]} 25... Kg4 {[%clk 0:01:25.4]} 26. Bf3+ {[%clk
0:00:14.9]} 26... Kh3 {[%clk 0:01:17.7]} 27. Bd1 {[%clk 0:00:12.9]} 27... Nd4
{[%clk 0:01:00.6]} 28. R6e3 {[%clk 0:00:11]} 28... Nxc2 {[%clk 0:00:40.3]} 29.
g4+ {[%clk 0:00:10.1]} 29... Kh4 {[%clk 0:00:37.6]} 30. Rxd3 {[%clk 0:00:03.8]}
30... Qxd3 {[%clk 0:00:34]} 31. Bxc2 {[%clk 0:00:04.4]} 31... Qa3+ {[%clk
0:00:33.4]} 32. Kb1 {[%clk 0:00:05.1]} 32... Qb4+ {[%clk 0:00:33]} 0-1

[Event "*** Titled Tuesday Blitz"]
[Site "Chess.com"]
[Date "2020.12.29"]
[Round "8"]
[White "sorrm8thatscheckm8"]
[Black "Pedrada88"]
[Result "1-0"]
[WhiteElo "2513"]
[BlackElo "2360"]
[TimeControl "180+1"]
[EndTime "11:27:29 PST"]
[Termination "sorrm8thatscheckm8 won by checkmate"]

1. d4 {[%clk 0:03:00.9]} 1... Nf6 {[%clk 0:02:58.8]} 2. c4 {[%clk 0:03:01.5]}
2... b6 {[%clk 0:02:59]} 3. a3 {[%clk 0:03:00.4]} 3... e6 {[%clk 0:02:56.6]} 4.
Nf3 {[%clk 0:02:59.2]} 4... c5 {[%clk 0:02:56.4]} 5. Nc3 {[%clk 0:03:00.1]} 5...
cxd4 {[%clk 0:02:56.1]} 6. Nxd4 {[%clk 0:03:01]} 6... Nc6 {[%clk 0:02:55.6]} 7.
e3 {[%clk 0:02:58.7]} 7... Nxd4 {[%clk 0:02:54.3]} 8. exd4 {[%clk 0:02:58.5]}
8... d5 {[%clk 0:02:48.6]} 9. cxd5 {[%clk 0:02:52.4]} 9... Nxd5 {[%clk
0:02:48.6]} 10. Bb5+ {[%clk 0:02:52]} 10... Bd7 {[%clk 0:02:48.7]} 11. Bd3
{[%clk 0:02:49.7]} 11... Bc6 {[%clk 0:02:43.5]} 12. O-O {[%clk 0:02:48.5]} 12...
Bd6 {[%clk 0:02:39.3]} 13. Qh5 {[%clk 0:02:44]} 13... g6 {[%clk 0:02:30.2]} 14.
Qh6 {[%clk 0:02:41.1]} 14... Bf8 {[%clk 0:02:30.6]} 15. Qh3 {[%clk 0:02:30.4]}
15... Bg7 {[%clk 0:02:30.7]} 16. Be3 {[%clk 0:02:19.3]} 16... O-O {[%clk
0:02:27.8]} 17. Rad1 {[%clk 0:02:16.3]} 17... Rc8 {[%clk 0:02:26.5]} 18. Ne4
{[%clk 0:02:05.1]} 18... Nxe3 {[%clk 0:02:22.8]} 19. fxe3 {[%clk 0:02:04]} 19...
f5 {[%clk 0:02:15.4]} 20. Nc3 {[%clk 0:01:58.3]} 20... Qg5 {[%clk 0:02:12.6]}
21. Ne2 {[%clk 0:01:46.2]} 21... e5 {[%clk 0:02:05.4]} 22. d5 {[%clk 0:01:07.5]}
22... Bxd5 {[%clk 0:01:56]} 23. Bxf5 {[%clk 0:00:51]} 23... gxf5 {[%clk
0:01:38.8]} 24. Rxd5 {[%clk 0:00:49.7]} 24... Rc2 {[%clk 0:01:38.5]} 25. Nc3
{[%clk 0:00:46.2]} 25... Rxb2 {[%clk 0:01:33.6]} 26. Rd6 {[%clk 0:00:45]} 26...
Qe7 {[%clk 0:01:08.8]} 27. Rdd1 {[%clk 0:00:31.5]} 27... f4 {[%clk 0:00:56.8]}
28. Nd5 {[%clk 0:00:27.8]} 28... Qxa3 {[%clk 0:00:51.9]} 29. Qh4 {[%clk
0:00:21.2]} 29... Qd6 {[%clk 0:00:30.5]} 30. Ne7+ {[%clk 0:00:19.4]} 30... Qxe7
{[%clk 0:00:29.6]} 31. Qxe7 {[%clk 0:00:20.3]} 31... fxe3 {[%clk 0:00:26.7]} 32.
Rxf8+ {[%clk 0:00:19.6]} 32... Bxf8 {[%clk 0:00:27.6]} 33. Qe6+ {[%clk
0:00:19.1]} 33... Kh8 {[%clk 0:00:27]} 34. Qxe5+ {[%clk 0:00:19.1]} 34... Bg7
{[%clk 0:00:27.6]} 35. Rd8# {[%clk 0:00:18.9]} 1-0